bitfinex/quotes_ETHUSD_20241122
["timestamp","ask_amount","ask_price","bid_price","bid_amount"]
[1732285933153,0.39238813,3285.2,3283.5,3.0]
[1732285933308,4.259466,3285.5,3283.6,0.03044607]
[1732285933513,0.4259466,3285.4,3283.6,0.03044607]
[1732285933940,0.33521812,3286.0,3284.0,3.0]
[1732285934143,0.33521812,3286.0,3284.1,0.0304415]
[1732285934350,1.215577,3285.9,3284.4,3.9238813]
[1732285934563,4.24053033,3286.8,3284.4,3.9238813]
[1732285934564,0.8065,3286.9,3284.5,3.0304382]
[1732285934720,3.04247,3286.8,3284.6,0.69543195]
[1732285934920,4.257856,3286.8,3285.0,3.0]
[1732285935146,3.04283,3286.5,3284.5,3.55]
[1732285935361,3.04358,3285.6,3283.5,3.0]
[1732285935556,3.9238813,3285.9,3282.9,3.9238813]
[1732285935743,3.9238813,3285.4,3283.0,0.42283539]
[1732285936065,3.04434,3284.8,3283.0,0.42283539]
[1732285936229,3.04434,3284.8,3283.0,0.03044726]
[1732285936427,3.04425,3284.9,3282.5,0.03045012]
[1732285936675,1.07626013,3285.3,3282.9,3.9238813]
[1732285936877,4.6818813,3285.9,3283.0,0.03044769]
[1732285937174,4.6818813,3285.9,3282.9,3.9238813]
[1732285937175,0.31665686,3286.3,3283.4,3.9238813]
[1732285937347,0.31665686,3286.3,3282.9,0.01]
[1732285937348,1.215306,3286.8,3284.6,0.55]
[1732285937672,1.215306,3286.8,3284.9,3.9238813]
[1732285937917,1.215306,3286.8,3285.0,3.97281551]
[1732285938044,0.31664447,3287.4,3285.0,3.97281551]
[1732285938448,0.31664447,3287.4,3285.5,3.55]
[1732285938655,0.31664447,3287.4,3286.0,3.55]
[1732285938868,0.31664447,3287.4,3286.6,0.55]
[1732285939041,0.0079067,3287.4,3286.8,0.55]
[1732285939238,0.0079067,3287.4,3286.9,0.03041421]
[1732285939470,0.0079067,3287.4,3286.0,3.0]
[1732285939779,0.0079067,3287.4,3285.4,3.9238813]
[1732285939780,0.0079067,3287.4,3286.1,0.03042121]
[1732285939936,0.0079067,3287.4,3285.7,0.03042307]
[1732285940133,3.931788,3287.4,3285.5,0.0304252]
[1732285940373,3.04274,3286.6,3285.0,0.0304252]
[1732285940539,3.04274,3286.6,3283.5,0.01]
[1732285940540,0.304274,3286.5,3284.5,0.0304341]
[1732285940739,3.04276,3286.5,3284.0,0.03043413]
[1732285941079,1.371,3287.2,3284.4,3.9238813]
[1732285941080,0.304276,3286.4,3284.4,3.9238813]
[1732285941239,0.30497467,3287.3,3284.9,3.9238813]
[1732285941579,0.0079067,3287.4,3284.9,3.9238813]
[1732285941580,3.0499067,3287.4,3285.0,0.03042519]
[1732285941795,3.9238813,3286.9,3285.0,0.03042519]
[1732285941973,3.55,3287.3,3285.0,0.03042519]
[1732285941974,3.04223,3287.1,3285.0,0.03042519]
[1732285942181,0.35579067,3287.2,3285.0,0.03042519]
[1732285942484,0.35579067,3287.2,3284.9,3.9238813]
[1732285942680,0.0079067,3287.4,3285.4,3.9238813]
[1732285942992,0.0079067,3287.4,3285.5,0.03042372]
[1732285943351,0.0079067,3287.4,3285.5,3.58042372]
[1732285943686,0.0079067,3287.4,3285.7,0.55]
[1732285943889,0.0079067,3287.4,3285.8,0.03042375]
[1732285945785,3.04203,3287.3,3285.8,0.03042375]
[1732285945991,3.04201,3287.3,3285.1,0.03042907]
[1732285946192,3.34709367,3287.2,3285.2,0.30304291]
[1732285946493,3.34714367,3287.2,3285.3,0.03042997]
[1732285946696,0.33471437,3287.1,3285.3,0.03042997]
[1732285947376,0.33471437,3287.1,3285.4,0.03042771]
[1732285947578,0.0079067,3287.4,3285.4,0.58042771]
[1732285947789,0.0079067,3287.4,3285.5,0.55]
[1732285948000,0.0079067,3287.4,3285.6,0.03042304]
[1732285948451,0.0079067,3287.4,3285.7,0.40046685]
[1732285948660,0.0079067,3287.4,3285.8,0.03042307]
[1732285948854,0.0079067,3287.4,3285.2,0.5804261]
[1732285949083,0.0079067,3287.4,3285.5,3.9238813]
[1732285949289,0.0079067,3287.4,3285.6,3.58042397]
[1732285950305,0.0079067,3287.4,3285.6,0.58042397]
[1732285950608,0.0079067,3287.4,3285.6,0.03042397]
[1732285950803,0.0079067,3287.4,3285.4,0.8533]
[1732285950804,0.0079067,3287.4,3285.7,0.03042399]
[1732285951174,0.0079067,3287.4,3285.8,0.3580424]
[1732285951369,0.0079067,3287.4,3285.9,0.58042094]
[1732285951571,0.0079067,3287.4,3286.2,0.3033]
[1732285951909,0.0079067,3287.4,3286.7,0.55]
[1732285952076,0.0079067,3287.4,3286.9,0.55]
[1732285952264,0.0079067,3287.4,3286.9,0.03041413]
[1732285953202,0.0079067,3287.4,3287.0,0.0304169]
[1732285954214,0.0079067,3287.4,3287.1,0.03041275]
[1732285955086,0.0079067,3287.4,3287.1,3.58041275]
[1732285955893,0.0079067,3287.4,3287.1,0.03041275]
[1732285956219,0.0079067,3287.4,3286.6,0.03041148]
[1732285956509,0.0079067,3287.4,3285.5,0.03042216]
[1732285956510,3.04212,3287.2,3285.5,0.03042216]
[1732285956808,0.0079067,3287.4,3285.1,0.537]
[1732285957017,0.0079067,3287.4,3285.2,0.03042738]
[1732285957171,0.0079067,3287.4,3285.4,3.9238813]
[1732285957374,0.0079067,3287.4,3285.5,0.42280845]
[1732285958027,0.0079067,3287.4,3285.5,0.03042032]
[1732285958218,0.0079067,3287.4,3284.9,3.9238813]
[1732285958219,3.04201,3287.3,3285.0,0.0304256]
[1732285958512,0.0079067,3287.4,3285.0,0.0304256]
[1732285958513,3.0424,3286.9,3285.0,0.0304256]
[1732285958709,0.30424,3286.8,3285.0,0.0304256]
[1732285958882,0.30424,3286.8,3284.4,3.9238813]
[1732285958883,0.30424,3286.8,3284.5,0.03043151]
[1732285959599,3.9238813,3287.3,3284.5,0.03043151]
[1732285959785,3.9238813,3287.3,3284.9,3.9238813]
[1732285960114,0.0079067,3287.4,3285.0,3.03042811]
[1732285960275,3.0498167,3287.4,3285.0,3.03042811]
[1732285960478,0.30498167,3287.3,3285.2,0.55]
[1732285960710,0.30498167,3287.3,3285.3,0.03042608]
[1732285960878,0.0079067,3287.4,3285.3,0.03042608]
[1732285961507,3.0498467,3287.4,3285.3,0.03042608]
[1732285961918,3.0498467,3287.4,3285.2,0.03042868]
[1732285961919,3.04243,3286.9,3285.2,0.03042868]
[1732285962090,3.04257,3286.7,3284.5,3.03043125]
[1732285962292,0.608472,3286.8,3283.9,3.9238813]
[1732285962293,3.9238813,3286.8,3283.9,3.9238813]
[1732285962509,0.55,3286.5,3284.0,0.42282253]
[1732285962683,0.55,3286.7,3284.0,0.42282253]
[1732285962684,3.04263,3286.7,3284.0,0.42282253]
[1732285962884,0.69665113,3286.6,3284.4,3.9238813]
[1732285963101,0.55,3286.9,3284.5,0.03043437]
[1732285963334,3.59239,3286.9,3284.6,0.42586413]
[1732285963629,0.55,3287.2,3284.9,3.9238813]
[1732285963780,3.04226,3287.1,3285.0,3.03043123]
[1732285963981,0.359226,3287.0,3285.0,0.03043123]
[1732285964217,0.359226,3287.0,3284.6,0.58043123]
[1732285964218,3.04252,3286.8,3284.6,0.58043123]
[1732285964417,0.55,3287.2,3284.6,0.58043123]
[1732285964418,0.55,3287.2,3284.6,0.03043123]
[1732285964625,3.79384913,3287.1,3284.6,0.42586248]
[1732285964794,3.04236,3287.0,3284.7,0.55]
[1732285964999,0.75158913,3287.1,3285.2,0.55]
[1732285965201,0.0079067,3287.4,3285.3,0.03042906]
[1732285965816,0.0079067,3287.4,3285.6,3.55]
[1732285965990,0.0079067,3287.4,3285.7,0.03042328]
[1732285966193,0.0079067,3287.4,3285.9,0.55]
[1732285966393,0.0079067,3287.4,3286.0,0.03042143]
[1732285967205,0.0079067,3287.4,3286.1,0.55]
[1732285967425,0.0079067,3287.4,3286.2,0.03041866]
[1732285967949,0.0079067,3287.4,3286.1,3.8533]
[1732285967950,0.0079067,3287.4,3286.5,3.9238813]
[1732285968230,0.0079067,3287.4,3286.6,3.580417]
[1732285968793,0.0079067,3287.4,3286.6,3.030417]
[1732285969224,0.0079067,3287.4,3286.2,0.38533]
[1732285969440,0.0079067,3287.4,3285.8,0.03042396]
[1732285969932,0.0079067,3287.4,3286.0,3.9238813]
[1732285970144,0.0079067,3287.4,3286.1,0.03042249]
[1732285971045,0.0079067,3287.4,3286.6,3.55]
[1732285971331,0.0079067,3287.4,3286.8,0.55]
[1732285971497,0.0079067,3287.4,3286.9,0.03041415]
[1732285972837,0.0079067,3287.4,3287.1,3.55]
[1732285973058,3.82913,3290.3,3287.2,0.03040986]
[1732285973242,1.214291,3289.0,3287.3,0.55]
[1732285973400,1.214291,3289.0,3287.4,0.03041009]
[1732285973401,4.254781,3289.0,3287.4,0.03041009]
[1732285973604,0.4254781,3288.9,3287.4,0.03041009]
[1732285973914,0.4254781,3288.9,3287.3,0.55]
[1732285973915,3.4660281,3288.9,3287.3,0.03041011]
[1732285974339,3.04091,3288.5,3286.7,0.58041231]
[1732285974518,3.04069,3288.8,3286.7,0.58041231]
[1732285974519,3.04104,3288.4,3286.7,1.27280044]
[1732285974716,3.0412,3288.2,3286.7,1.27280044]
[1732285974922,0.304104,3288.3,3286.7,0.72280044]
[1732285975105,3.04108,3288.3,3286.7,0.03041231]
[1732285975306,3.04127,3288.1,3286.1,0.03041757]
[1732285975507,3.04152,3287.9,3286.1,0.49092426]
[1732285975808,3.04127,3288.1,3286.1,0.49092426]
[1732285976005,0.304127,3288.0,3286.2,0.50959912]
[1732285976240,0.304127,3288.0,3286.3,0.03041952]
[1732285976610,3.04099,3288.5,3286.3,0.03041952]
[1732285976952,1.75064413,3288.7,3286.3,0.58041952]
[1732285977157,0.17506441,3288.6,3286.3,0.58041952]
[1732285977448,3.21587441,3288.6,3286.6,3.55]
[1732285977657,3.04081,3288.6,3286.7,0.03041536]
[1732285978010,3.04054,3288.9,3286.7,0.03041536]
[1732285978233,0.1981991,3288.9,3286.9,0.55]
[1732285978545,0.7871,3289.7,3287.1,3.55]
[1732285978752,0.55,3289.1,3287.2,0.03040836]
[1732285978961,0.55,3289.1,3287.4,0.55]
[1732285979244,0.55,3289.1,3287.3,0.35804084]
[1732285979466,3.04062,3288.8,3287.1,0.03040836]
[1732285979617,3.04044,3289.0,3287.4,0.0304139]
[1732285979814,3.04053,3288.9,3286.7,0.58041107]
[1732285980014,3.04055,3288.9,3286.7,0.58041107]
[1732285980214,0.3399588,3288.8,3286.9,0.55]
[1732285980512,0.55,3289.1,3287.2,3.0]
[1732285980840,3.82694,3289.7,3287.4,0.3033]
[1732285981026,1.214127,3289.5,3287.6,0.55]
[1732285981229,1.214127,3289.5,3287.7,0.03040486]
[1732285981430,3.03944,3290.1,3287.8,0.55]
[1732285981749,0.55,3289.7,3287.9,0.03040352]
[1732285982125,3.58979,3289.7,3287.9,0.03040352]
[1732285982331,0.55,3289.7,3287.9,0.03040352]
[1732285982650,3.03995,3289.6,3287.9,0.38837035]
[1732285982853,3.03995,3289.6,3287.8,0.03040367]
[1732285983129,3.03965,3289.9,3287.6,0.03040736]
[1732285983276,3.04016,3289.3,3287.5,0.03040736]
[1732285983495,0.7704,3289.4,3287.5,0.03040736]
[1732285983496,3.0405,3289.0,3287.5,0.03040736]
[1732285983639,0.55,3289.3,3287.3,0.0304105]
[1732285983840,3.04016,3289.3,3287.3,0.0304105]
[1732285984077,3.04043,3289.1,3287.3,0.0304105]
[1732285984239,0.7704,3289.4,3287.3,0.0304105]
[1732285984582,3.03976,3289.8,3287.7,3.0]
[1732285984879,4.558404,3290.2,3287.8,0.88370424]
[1732285985087,4.558404,3290.2,3288.2,3.3033]
[1732285985088,0.304921,3290.2,3288.2,3.3033]
[1732285985236,0.6215301,3290.1,3288.3,1.30311904]
[1732285985672,0.7821,3290.6,3288.3,1.30311904]
[1732285985673,3.03914,3290.4,3288.3,1.30311904]
[1732285985871,0.7821,3290.6,3288.3,1.30311904]
[1732285986073,6.9625513,3291.0,3288.3,1.30311904]
[1732285986279,0.69623813,3290.9,3288.5,0.55]
[1732285986586,0.69623813,3290.9,3288.7,3.55]
[1732285986746,3.03844,3291.2,3288.8,0.03039396]
[1732285986946,3.03825,3291.4,3289.1,3.9238813]
[1732285987184,3.1861247,3291.6,3289.1,3.9238813]
[1732285987185,0.385895,3291.3,3289.3,0.55]
[1732285987393,0.1480547,3291.6,3289.7,3.55]
[1732285987597,0.1480547,3291.6,3289.9,0.55]
[1732285987882,0.1480547,3291.6,3290.0,0.03038526]
[1732285988049,0.1480547,3291.6,3290.2,3.55]
[1732285988246,0.1480547,3291.6,3290.3,0.03038091]
[1732285989290,0.1480547,3291.6,3290.2,2.70038091]
[1732285989447,0.1480547,3291.6,3290.7,0.55]
[1732285989641,0.1480547,3291.6,3291.2,0.55]
[1732285989886,0.03675374,3293.4,3291.3,0.03037249]
[1732285990087,3.03626,3293.6,3291.4,0.55]
[1732285990272,3.03663,3293.2,3291.5,0.03036953]
[1732285990449,0.303663,3293.1,3291.5,0.03036953]
[1732285990648,3.03628,3293.5,3291.5,0.03036953]
[1732285990985,0.03675374,3293.4,3291.5,0.03036953]
[1732285991286,0.03675374,3293.7,3291.7,3.55]
[1732285991449,1.14111105,3294.7,3292.2,3.0]
[1732285991655,3.03554,3294.3,3292.3,1.27275156]
[1732285991958,0.1480547,3294.8,3292.7,0.55]
[1732285991959,1.3604947,3294.8,3292.7,0.55]
[1732285992162,0.1480547,3294.8,3293.2,0.55]
[1732285992375,0.1480547,3294.8,3293.3,0.03035418]
[1732285992683,0.1480547,3294.8,3293.7,3.55]
[1732285992857,0.1480547,3294.8,3293.8,0.42776526]
[1732285993058,0.1480547,3294.8,3293.9,0.55]
[1732285993285,0.1480547,3294.8,3294.0,0.03034788]
[1732285993453,0.1480547,3294.8,3294.1,0.55]
[1732285993648,0.1480547,3294.8,3294.3,0.55]
[1732285993896,0.1480547,3294.8,3294.5,0.55]
[1732285994063,0.1480547,3294.8,3294.7,0.55]
[1732285994417,0.1480547,3294.8,3294.7,0.96658373]
[1732285994704,0.31600113,3297.4,3294.7,0.96658373]
[1732285994861,0.31600113,3297.4,3294.9,0.55]
[1732285995061,0.03675374,3297.3,3295.1,0.55]
[1732285995298,0.03675374,3297.3,3295.2,0.03033417]
[1732285995597,3.03282,3297.3,3295.3,0.55]
[1732285995759,0.7577,3297.8,3295.4,0.03033142]
[1732285995961,3.06924374,3297.7,3295.4,0.03033142]
[1732285996197,0.03675374,3297.7,3295.7,0.55]
[1732285996407,0.4071936,3298.0,3296.5,0.55]
[1732285996607,3.06907374,3297.9,3296.3,0.03032611]
[1732285996808,0.03675374,3297.9,3295.8,0.58032896]
[1732285997095,3.06890374,3298.0,3296.0,0.55]
[1732285997296,0.03675374,3298.0,3296.1,0.03032878]
[1732285997516,0.32169084,3297.9,3296.2,0.55]
[1732285997812,0.32169084,3297.9,3296.4,0.55]
[1732285998144,0.1480547,3298.1,3296.6,0.55]
[1732285998269,4.10868974,3298.1,3296.3,0.03032448]
[1732285998469,3.03276,3297.4,3295.8,0.03033285]
[1732285998670,3.03256,3297.6,3295.8,0.03033285]
[1732285998877,3.03243,3297.7,3295.8,0.03033285]
[1732285999084,0.03675374,3297.9,3295.9,0.30303329]
[1732285999286,0.03675374,3298.0,3296.0,0.03032908]
[1732285999487,3.03223,3297.9,3295.8,0.03032925]
[1732285999691,3.03244,3297.7,3295.6,3.9238813]
[1732285999897,0.1480547,3298.1,3296.1,3.9238813]
[1732286000097,0.1480547,3298.1,3296.2,0.44690849]
[1732286000499,3.03239,3297.8,3296.2,0.03032476]
[1732286000805,0.1480547,3298.1,3296.2,3.96658373]
[1732286001006,0.1480547,3298.1,3296.4,0.55]
[1732286001312,0.1480547,3298.1,3296.5,0.03032332]
[1732286001908,0.03675374,3298.0,3296.6,0.03032334]
[1732286002095,0.03675374,3298.0,3295.8,0.58032824]
[1732286002300,0.1480547,3298.1,3296.4,0.55]
[1732286002476,0.1480547,3298.1,3296.5,0.44690897]
[1732286002679,0.1480547,3298.1,3296.6,4.4738813]
[1732286003002,0.1480547,3298.1,3296.8,0.55]
[1732286003184,0.1480547,3298.1,3296.9,0.03031854]
[1732286003387,0.1480547,3298.1,3296.9,0.44690227]
[1732286003575,0.1480547,3298.1,3297.0,0.96658373]
[1732286003916,0.1480547,3298.1,3297.2,0.55]
[1732286004116,0.1480547,3298.1,3297.3,0.03031854]
[1732286004324,0.1480547,3298.1,3297.2,0.03031854]
[1732286004609,0.46604717,3298.1,3296.9,0.03031854]
[1732286004980,0.1480547,3298.1,3296.9,0.03031854]
[1732286005481,0.1480547,3298.1,3297.0,0.03032247]
[1732286005693,0.1480547,3298.1,3297.1,3.55]
[1732286005872,0.1480547,3298.1,3297.2,0.03031817]
[1732286006075,0.1480547,3298.1,3297.6,3.55]
[1732286006272,0.03675374,3299.9,3298.0,3.9238813]
[1732286006505,1.63575374,3300.5,3298.1,3.58030799]
[1732286006714,0.16357537,3300.4,3298.6,3.55]
[1732286006876,0.03675374,3300.4,3298.7,0.03030214]
[1732286007077,3.02985,3300.5,3298.7,0.03030214]
[1732286007276,3.02964,3300.8,3298.9,0.55]
[1732286007514,3.06614374,3301.0,3298.9,0.55]
[1732286007515,0.03675374,3300.7,3299.0,0.03029894]
[1732286007679,3.02967,3300.7,3299.0,0.03029894]
[1732286007874,0.302967,3300.6,3299.0,0.03029894]
[1732286008074,3.06624374,3300.9,3299.0,0.03029894]
[1732286008313,3.02959,3300.8,3299.0,0.03029894]
[1732286008471,3.02979,3300.6,3299.0,0.03029894]
[1732286008671,0.03675374,3300.5,3299.0,0.03029894]
[1732286008926,3.06660374,3300.5,3299.0,0.03029894]
[1732286009120,3.03003,3300.3,3299.0,0.03029894]
[1732286009412,3.02926,3301.2,3299.0,0.03029894]
[1732286009413,3.02947,3300.9,3299.0,0.03029894]
[1732286009585,3.02956,3300.8,3299.0,0.03030367]
[1732286009786,0.03675374,3300.7,3299.0,0.03030367]
[1732286009989,0.75943447,3301.0,3299.3,3.0]
[1732286010297,3.03004,3300.3,3299.0,0.03030367]
[1732286010502,3.02985,3300.5,3299.2,3.0]
[1732286010677,0.03675374,3300.8,3299.3,0.03030108]
[1732286010880,3.03003,3300.3,3298.7,0.5803011]
[1732286011112,0.303003,3300.2,3298.7,1.37545815]
[1732286011279,3.02966,3300.7,3298.7,1.79204188]
[1732286011479,3.02966,3300.7,3298.7,1.37545815]
[1732286011710,0.34339511,3300.6,3298.9,0.55]
[1732286011876,3.0301,3300.3,3299.2,3.0]
[1732286012077,0.30301,3300.2,3299.0,0.0302987]
[1732286012323,3.02994,3300.4,3299.3,0.03030301]
[1732286012476,0.33974774,3300.3,3298.9,0.55]
[1732286012679,0.03675374,3300.2,3298.4,0.03030392]
[1732286012916,3.03037,3300.0,3298.4,0.03030392]
[1732286013212,3.03049,3299.8,3298.4,0.03030392]
[1732286013397,0.303049,3299.7,3298.4,0.03030392]
[1732286013597,3.03002,3300.4,3298.4,0.44688765]
[1732286013813,3.03039,3299.9,3298.4,0.53299816]
[1732286013976,3.333599,3299.8,3298.4,0.03030392]
[1732286014174,0.03675374,3300.1,3297.5,4.42657554]
[1732286014175,0.03675374,3299.7,3298.0,0.03030644]
[1732286014374,3.03087,3299.4,3298.0,0.03030644]
[1732286014603,3.031,3299.3,3298.0,0.03030644]
[1732286015110,3.42276813,3300.0,3298.0,0.41658373]
[1732286015316,0.001599,3299.8,3298.1,0.44689141]
[1732286015692,0.001599,3299.8,3298.2,0.55]
[1732286016007,0.001599,3299.8,3298.3,0.03030637]
[1732286016201,3.03105,3299.2,3297.7,0.03030988]
[1732286016409,0.33985874,3299.1,3297.7,0.03030988]
[1732286016589,3.03112,3299.2,3297.7,0.03030988]
[1732286016798,3.03141,3298.8,3297.2,0.03031335]
[1732286017004,0.03675374,3298.7,3297.2,0.46435985]
[1732286017221,0.03675374,3299.3,3297.2,0.03031335]
[1732286017424,3.03208,3298.1,3296.7,0.03031724]
[1732286017625,3.0314,3298.8,3296.8,0.41658373]
[1732286017919,3.03175,3298.5,3296.9,0.03031848]
[1732286018228,3.03133,3298.9,3296.9,0.03031848]
[1732286018400,3.03114,3299.1,3296.9,0.44690221]
[1732286018581,0.46942813,3299.0,3297.0,0.41658373]
[1732286018783,3.06789374,3299.1,3297.1,0.03031706]
[1732286018982,3.9238813,3299.6,3297.1,0.44690079]
[1732286019236,0.50618187,3299.4,3297.1,0.44690079]
[1732286019390,0.50618187,3299.4,3297.1,0.03031706]
[1732286019727,0.35061819,3299.3,3297.0,3.0]
[1732286020015,0.46942813,3299.4,3297.5,3.0]
[1732286020218,3.03063,3299.7,3297.6,0.58031173]
[1732286020524,3.03063,3299.7,3297.8,0.55]
[1732286020817,0.3032229,3299.6,3297.9,0.03030956]
[1732286021227,0.001599,3299.8,3298.2,0.55]
[1732286021517,0.001599,3299.8,3298.3,0.0303071]
[1732286023387,0.001599,3299.8,3298.0,0.03030811]
[1732286023586,0.3850639,3299.7,3298.0,0.03030811]
[1732286023838,0.001599,3299.8,3298.0,3.44689184]
[1732286024117,0.001599,3299.8,3298.1,0.41658373]
[1732286024321,0.001599,3299.8,3298.4,3.9238813]
[1732286024537,0.001599,3299.8,3298.8,0.3033]
[1732286024742,0.001599,3299.8,3298.9,0.58029761]
[1732286025105,0.001599,3299.8,3299.1,0.55]
[1732286025306,0.001599,3299.8,3299.3,0.55]
[1732286025547,0.001599,3299.8,3299.4,0.03029678]
[1732286029440,0.001599,3299.8,3299.2,0.513596]
[1732286029612,0.001599,3299.8,3299.6,3.0]
[1732286029949,0.001599,3299.8,3299.7,0.03029062]
[1732286030444,0.001599,3299.8,3299.7,0.58029062]
[1732286030661,0.001599,3299.8,3299.7,0.03029062]
[1732286030851,0.001599,3299.8,3299.2,0.03029614]
[1732286031142,0.001599,3299.8,3298.5,0.03029896]
[1732286031805,0.001599,3299.8,3298.6,0.9035964]
[1732286032020,0.001599,3299.8,3298.7,0.03029633]
[1732286032273,0.001599,3299.8,3298.9,3.9238813]
[1732286032553,0.001599,3299.8,3299.1,0.55]
[1732286032752,0.001599,3299.8,3299.2,0.03029363]
[1732286032956,0.001599,3299.8,3299.4,3.9238813]
[1732286033183,0.001599,3299.8,3299.5,3.58029363]
[1732286033723,0.18480844,3301.4,3299.5,3.58029363]
[1732286033920,0.18480844,3301.4,3299.7,0.55]
[1732286034118,0.18480844,3301.4,3299.8,0.03029219]
[1732286034657,3.0293,3301.1,3299.6,0.75041749]
[1732286034819,3.02949,3300.9,3299.5,0.03029321]
[1732286035025,0.03675374,3300.8,3298.5,0.03029883]
[1732286035253,0.15755378,3303.9,3302.6,0.01]
[1732286035433,3.02526,3305.5,3303.2,3.9238813]
[1732286035633,0.7792,3305.6,3303.3,2.40198037]
[1732286035956,0.84355715,3306.5,3303.3,2.40198037]
[1732286035957,4.7e-06,3304.7,3303.9,3.0]
[1732286036169,4.7e-06,3304.7,3303.0,0.01]
[1732286036170,0.7792,3308.3,3304.4,3.0]
[1732286036326,3.02334,3307.6,3305.3,0.55]
[1732286036665,3.02381,3307.1,3305.3,0.58024102]
[1732286036975,3.9238813,3307.6,3305.4,0.03024595]
[1732286037136,0.39438813,3307.5,3305.4,0.03024595]
[1732286037336,3.02436,3306.5,3304.2,0.55]
[1732286037634,0.7984,3307.0,3304.2,0.55]
[1732286037635,0.33268195,3306.4,3304.3,0.03025308]
[1732286037837,0.03024595,3306.4,3304.3,3.95413438]
[1732286038188,3.0238,3307.1,3304.4,3.55]
[1732286038478,3.0238,3307.1,3304.5,0.78066339]
[1732286038479,0.7884,3306.4,3304.5,0.78066339]
[1732286038635,0.03024595,3306.3,3304.5,0.03024995]
[1732286039991,0.03024595,3306.3,3304.5,0.03025228]
[1732286040161,0.3843106,3306.2,3304.0,0.58025228]
[1732286040362,0.03024595,3306.1,3304.1,0.55]
[1732286040563,0.03024595,3306.1,3304.2,0.03025576]
[1732286040802,0.34145565,3306.0,3304.2,0.03025576]
[1732286040959,0.7884,3306.4,3304.2,0.03025576]
[1732286041159,0.03024595,3306.3,3304.2,0.03025576]
[1732286041470,0.7884,3306.4,3304.5,3.55]
[1732286041656,0.7884,3306.4,3304.6,0.03024854]
[1732286041860,0.03024595,3306.3,3304.6,0.03024854]
[1732286042668,3.9238813,3306.2,3304.1,0.03024805]
[1732286042881,3.02503,3305.8,3303.6,0.7729287]
[1732286043071,3.95412725,3305.7,3303.6,0.0302558]
[1732286043394,3.95412725,3305.7,3303.0,0.03026065]
[1732286043559,0.42665867,3306.0,3303.4,3.9238813]
[1732286043760,0.03024595,3306.0,3303.5,0.03025579]
[1732286043974,0.84334595,3306.5,3303.9,3.9238813]
[1732286044175,0.84334595,3306.5,3304.0,0.03025133]
[1732286044176,0.38131,3306.4,3304.0,0.03025133]
[1732286044487,0.39438813,3307.5,3304.9,3.9238813]
[1732286044699,0.39438813,3307.5,3305.2,0.55]
[1732286044990,0.03024595,3307.4,3305.3,0.03024056]
[1732286045186,0.03024595,3307.4,3305.4,0.1]
[1732286045369,0.03024595,3307.4,3305.5,0.55]
[1732286045712,0.001599,3306.0,3305.6,0.03024098]
[1732286046702,0.001599,3306.0,3305.8,0.55]
[1732286046914,0.001599,3306.0,3305.9,0.03023798]
[1732286047407,0.001599,3306.0,3305.7,0.1]
[1732286047590,0.001599,3306.0,3305.8,0.58024245]
[1732286047967,0.001599,3306.0,3305.8,0.03024245]
[1732286048168,0.001599,3306.0,3305.8,0.58024245]
[1732286048699,0.001599,3306.0,3305.7,0.1]
[1732286048901,0.001599,3306.0,3305.1,0.1]
[1732286049065,0.001599,3306.0,3305.2,0.03024767]
[1732286049476,0.001599,3306.0,3305.3,0.1]
[1732286049699,0.001599,3306.0,3305.4,0.03024586]
[1732286050781,0.001599,3306.0,3305.3,0.1]
[1732286050983,0.001599,3306.0,3305.4,0.03024876]
[1732286051310,0.001599,3306.0,3305.3,0.1]
[1732286052000,0.001599,3306.0,3305.4,0.03024398]
[1732286052370,0.001599,3306.0,3305.3,0.13024398]
[1732286052574,0.001599,3306.0,3305.3,0.1]
[1732286052799,0.001599,3306.0,3304.4,0.1]
[1732286053692,3.02588,3304.9,3303.8,0.1]
[1732286053890,3.02656,3304.1,3302.7,0.1]
[1732286054112,3.9238813,3304.6,3302.7,0.1]
[1732286054113,0.33290195,3304.0,3302.7,0.1]
[1732286054266,3.02701,3303.6,3301.9,0.1]
[1732286054471,0.79664595,3303.5,3302.0,0.030275]
[1732286054771,0.01,3304.2,3302.0,0.0302758]
[1732286054772,0.39238813,3304.0,3302.0,0.0302758]
[1732286054974,0.03024595,3304.1,3302.0,1.14000794]
[1732286055212,0.03024595,3304.5,3302.1,0.7168844]
[1732286055379,0.7664,3304.9,3302.3,0.1]
[1732286055703,0.7664,3304.9,3302.6,0.1]
[1732286055908,0.03024595,3304.8,3302.7,0.43264861]
[1732286056092,3.9238813,3304.6,3302.7,0.03026048]
[1732286056416,3.02664,3304.0,3302.6,0.1]
[1732286056575,0.03024595,3304.3,3302.6,0.1]
[1732286056769,0.42263408,3304.5,3302.7,0.03027112]
[1732286057109,3.02637,3304.3,3302.7,0.03027112]
[1732286057308,0.73423994,3304.4,3302.7,0.03027112]
[1732286057481,0.03024595,3304.8,3302.7,0.03027112]
[1732286057682,0.302519,3305.5,3302.7,0.03027112]
[1732286057905,0.03024595,3305.4,3303.1,0.55]
[1732286058136,0.03024595,3305.4,3303.2,0.13026145]
[1732286058349,0.39238813,3305.5,3303.2,0.13026145]
[1732286058508,3.02582,3304.9,3303.2,0.13026145]
[1732286058704,0.33282795,3304.8,3303.2,0.13026145]
[1732286059005,3.026,3304.7,3303.2,0.13026145]
[1732286059405,3.02618,3304.5,3303.2,0.1]
[1732286059605,3.02599,3304.7,3303.2,0.1]
[1732286059801,0.302599,3304.6,3303.2,0.1]
[1732286060442,0.03024595,3305.0,3303.2,0.1]
[1732286060605,3.05595595,3305.0,3303.2,0.1]
[1732286060808,3.02606,3304.7,3303.2,0.1]
[1732286061008,3.02591,3304.8,3303.2,0.1]
[1732286061232,3.81858,3304.5,3303.2,0.1]
[1732286061440,3.05657595,3304.4,3303.2,0.1]
[1732286061662,3.02665,3304.0,3302.7,0.1]
[1732286061940,3.02688,3303.8,3302.7,0.1]
[1732286062322,3.02672,3303.9,3302.7,0.1]
[1732286062532,3.9238813,3303.6,3301.7,0.1]
[1732286062724,0.7864,3303.4,3301.7,0.1]
[1732286062917,0.03024595,3303.3,3301.7,0.1]
[1732286063120,3.02762,3303.0,3301.7,0.1]
[1732286063326,3.02773,3302.8,3301.7,0.1]
[1732286063632,0.03024595,3302.7,3301.7,0.1]
[1732286063831,3.02801,3302.5,3301.7,0.1]